Cogmind - Beta 14 @@@ ROGUE MODE // 2025.03.25 @ 18:02:54 Player: SelfCookedBird Result: Destroyed by D-53 Grenadier with Mini Grenade Launcher Performance ------------- Evolutions (0) 0 Regions Visited (2) 400 Robots Destroyed (15) 75 Value Destroyed (490) 490 Prototype IDs (0) 0 Alien Tech Used (0) 0 Bonus (0) 0 TOTAL SCORE: 965 Bonus ------- None Cogmind --------- Core Integrity 0/250 Matter 233/300 Energy 121/125 System Corruption 3% Temperature Cool (22) Movement Walking (120) Location -10/Mines Parts ------- > --- POWER (1) -------- Light Ion Engine > --- PROPULSION (2) --- Aluminum Leg Aluminum Leg > --- UTILITY (2) ------ Small Storage Unit Small Storage Unit > --- WEAPON (2) ------- (None) > --- INVENTORY (8) ---- Light Ion Engine Aluminum Leg Large Storage Unit High-capacity Storage Unit Light Armor Plating Light Assault Rifle Peak State ------------ > --- POWER ------------ Light Ion Engine > --- PROPULSION ------- Aluminum Leg Aluminum Leg > --- UTILITY ---------- Small Storage Unit Small Storage Unit > --- WEAPON ----------- EM Pulse Gun Assault Rifle > --- INVENTORY -------- Light Ion Engine Light Treads Wheel Compact Wheel Light Assault Rifle [Rating: 7] Favorites ----------- Power Light Ion Engine Engine Light Ion Engine Propulsion Aluminum Leg Leg Aluminum Leg Utility Small Storage Unit Storage Small Storage Unit Weapon Light Assault Rifle Energy Gun EM Pulse Gun Ballistic Gun Light Assault Rifle Launcher Grenade Launcher Special Weapon Mining Laser Build | -11 -10 -10 ------- Run | Yrd Mat Min Slots Evolved . | . . . Power . | . . . Propulsion . | . . . Utility . | . . . Weapon . | . . . Parts Attached 14 | 7 3 4 Power 1 | 1 . . Engine 1 | 1 . . Core . | . . . Reactor . | . . . Propulsion 4 | 2 1 1 Treads . | . . . Leg 4 | 2 1 1 Wheel . | . . . Hover . | . . . Flight . | . . . Utility 2 | 2 . . Device . | . . . Storage 2 | 2 . . Processor . | . . . Hackware . | . . . Protection . | . . . Artifact . | . . . Weapon 7 | 2 2 3 Energy Gun 2 | 1 . 1 Energy Cannon . | . . . Ballistic Gun 2 | 1 1 . Ballistic Cannon . | . . . Launcher 2 | . 1 1 Special Weapon 1 | . . 1 Impact Weapon . | . . . Slashing Weapon . | . . . Piercing Weapon . | . . . Special Melee Weapon . | . . . Unidentified Prototypes . | . . . Corrupted Parts 1 | . 1 . System Corruption 3 | . 3 . Parts Lost 4 | . . 4 Power . | . . . Propulsion 1 | . . 1 Utility . | . . . Weapon 3 | . . 3 Highest Loss Streak 4 | . . 4 To Critical Strikes . | . . . Average Slot Usage (%) 96 | . 100 82 Engine 14 | . 14 14 Leg 26 | . 28 21 Storage 28 | . 28 28 Energy Gun 2 | . . 9 Ballistic Gun 11 | . 14 2 Launcher 11 | . 13 . Special Weapon 1 | . . 7 Peak Build Rating 7 | 7 7 7 Average Rating 6 | 5 7 6 On Entrance 4 | . 7 7 Naked Turns . | . . . Heaviest Build 17 | 17 17 16 Greatest Support 20 | 20 20 20 Greatest Overweight (x) 2 | 2 . 1 Average Overweight (x) . | . . . Largest Inventory Capacity 8 | 8 8 8 Average Capacity 7 | 7 8 8 Most Carried 8 | 7 8 8 Average Carried 6 | 3 7 7 Final Capacity 8 | 8 8 8 Final Carried 8 | 7 8 6 Class Distribution -------------------- 100% | Mutant Dominant Class ---------------- Mutant | -10/Materials Mutant | -10/Mines Resources | -11 -10 -10 ----------- Run | Yrd Mat Min Matter Collected 417 | 277 140 . Remotely . | . . . Salvage Created 464 | 74 334 56 Parts 26 | 2 24 . Haulers Intercepted . | . . . Recyclers Shooed . | . . . Parts Field Recycled . | . . . Retrieved Matter . | . . . Parts Self-Destructed . | . . . Prevented . | . . . Kills | -11 -10 -10 ------- Run | Yrd Mat Min Combat Hostiles Destroyed 10 | . 8 2 Guns 2 | . 1 1 AOE 8 | . 7 1 Classes Destroyed 5 | 1 4 . Tunneler 1 | . 1 . Recycler 1 | 1 . . Mechanic 1 | . 1 . Watcher 2 | . 2 . Grunt 10 | . 8 2 Best Kill Streak 9 | 1 9 2 Combat Bots Only 4 | . 4 2 Max Kills in Single Turn 2 | 1 2 1 Gunslinging . | . . . Exploded 2 | . 2 1 Melee . | . . . Uniques/NPCs Destroyed . | . . . Combat | -11 -10 -10 -------- Run | Yrd Mat Min Hostile Shots Fired 58 | . 27 31 Missed 17 | . 10 7 Damage Taken 858 | . 272 586 Core 250 | . 76 174 Absorbed by Shields . | . . . Core Remaining (%) 100 | 100 . . Volleys Fired 30 | 3 18 9 Largest 2 | 2 2 2 Hottest 140 | 60 50 140 Shots Fired 51 | 6 29 16 Gun 37 | 6 18 13 Cannon . | . . . Launcher 12 | . 11 1 Special 2 | . . 2 Kinetic 25 | 3 18 4 Thermal 2 | . . 2 Explosive 12 | . 11 1 Electromagnetic 12 | 3 . 9 Robot Hit Streak 6 | 2 6 6 Robot Miss Streak 4 | 1 4 1 Penetration Max . | . . . Secondary Targets . | . . . Shots Hit Robots 31 | 3 17 11 Core Hits 37 | 2 30 5 Critical Kills . | . . . Critical Parts Destroyed . | . . . Critical Strikes . | . . . Melee Attacks . | . . . Impact . | . . . Slashing . | . . . Piercing . | . . . Sneak Attacks . | . . . Combat Hostiles . | . . . Follow-up Attacks . | . . . Damage Inflicted 1044 | 39 778 227 Guns 226 | 39 83 104 Cannons . | . . . Explosions 794 | . 695 99 Melee . | . . . Ramming . | . . . Kinetic 135 | 26 83 26 Thermal 57 | . . 57 Explosive 617 | . 551 66 Electromagnetic 235 | 13 144 78 Impact . | . . . Slashing . | . . . Piercing . | . . . Highest Corruption 3 | . 3 3 Average Corruption 3 | . 3 3 Corruption Purged . | . . . Corruption Blocked . | . . . Effects 5 | . 3 2 Matter Fused 2 | . 1 1 Energy Discharges 1 | . . 1 Data Loss (minor) 2 | . 2 . Overload Shots . | . . . Overflow Damage 23 | . 4 19 Projectiles . | . . . Explosions 23 | . 4 19 Melee . | . . . Knockbacks . | . . . Impact . | . . . Kinetic . | . . . Secondary . | . . . Self-Inflicted Damage 87 | . 30 57 Shots 3 | . 1 2 Rammed . | . . . Targets Rammed . | . . . Kicked . | . . . Crushed . | . . . Highest Temperature 98 | . 44 98 Average Temperature 35 | . 19 47 Received Heat Transfer 314 | . 150 164 Siege Activations . | . . . Robots Corrupted . | . . . Combat Hostiles . | . . . Parts Fried . | . . . Impact Corruptions . | . . . Robots Melted . | . . . Combat Hostiles . | . . . Parts Melted . | . . . Heat Transferred 100 | . . 100 Parts Sabotaged . | . . . Parts Stolen . | . . . Parts Stripped . | . . . Power Chain Reactions . | . . . Alert | -11 -10 -10 ------- Run | Yrd Mat Min Peak Influence 295 | 5 295 192 Initial 114 | . 3 114 Average 154 | 3 201 160 Maximum Alert Level 1 | . 1 . Low Security (%) 55 | 100 31 100 Level 1 44 | . 68 . Level 2 . | . . . Level 3 . | . . . Level 4 . | . . . Level 5 . | . . . High Security . | . . . Max Security . | . . . Squads Dispatched . | . . . Investigation . | . . . Extermination . | . . . Reinforcement . | . . . Assault . | . . . Garrison . | . . . Intercept . | . . . Searches Triggered . | . . . Construction Impeded . | . . . Haulers Reinforced . | . . . Active Scanning Responses . | . . . Cargo Convoy Interrupts . | . . . Stealth | -11 -10 -10 --------- Run | Yrd Mat Min Distress Signals 2 | . 2 . Communications Jammed . | . . . Distress Signals . | . . . Times Spotted 27 | . 12 15 Peak Tracking Total 12 | . 3 12 Tactical Retreats . | . . . Traps | -11 -10 -10 ------- Run | Yrd Mat Min Traps Triggered 3 | . 3 . Indirectly 3 | . 3 . Trap Hack Attempts . | . . . Triggered . | . . . Disarmed . | . . . Reprogrammed . | . . . Reused . | . . . Traps Extracted . | . . . Installed . | . . . Triggered . | . . . Machines | -11 -10 -10 ---------- Run | Yrd Mat Min Machines Disabled 4 | . 3 1 Max in Single Turn 1 | . 1 1 Machines Repaired . | . . . Machines Dismantled . | . . . Machines Sabotaged . | . . . Overloaded Fab Kills . | . . . Hacking | -11 -10 -10 --------- Run | Yrd Mat Min Machines Accessed . | . . . Terminals . | . . . Fabricators . | . . . Repair Stations . | . . . Recycling Units . | . . . Scanalyzers . | . . . Garrison Access . | . . . Total Hacks . | . . . Successful . | . . . Failed . | . . . Catastrophic . | . . . Database Lockouts . | . . . Manual . | . . . Terminals . | . . . Fabricators . | . . . Repair Stations . | . . . Recycling Units . | . . . Scanalyzers . | . . . Garrison Access . | . . . Terminal Hacks . | . . . Fabricator Hacks . | . . . Repair Station Hacks . | . . . Recycling Unit Hacks . | . . . Scanalyzer . | . . . Garrison Access Hacks . | . . . Unauthorized Hacks . | . . . Terminals . | . . . Fabricators . | . . . Repair Stations . | . . . Recycling Units . | . . . Scanalyzers . | . . . Garrison Access . | . . . Data Cores Recovered . | . . . Used . | . . . Hacking Detections . | . . . Full Trace Events . | . . . Feedback Events . | . . . Feedback Blocked . | . . . Robot Schematics Acquired . | . . . Robots Built . | . . . Authchips . | . . . Time . | . . . Total Robot Build Rating . | . . . Part Schematics Acquired . | . . . Parts Built . | . . . Authchips . | . . . Time . | . . . Total Part Build Rating . | . . . Parts Repaired . | . . . Time . | . . . Parts Recycled . | . . . Recycled Matter . | . . . Retrieved Matter . | . . . Retrieved Components . | . . . Parts Scanalyzed . | . . . Part Schematics Acquired . | . . . Parts Damaged . | . . . Bothacking | -11 -10 -10 ------------ Run | Yrd Mat Min Used RIF Installer . | . . . Robots Hacked . | . . . Non-combat . | . . . Combat . | . . . Robot Hacks Applied . | . . . Relay Couplers Released . | . . . Fabnet Peak Effective % . | . . . Robots Rewired . | . . . Allies Hacked . | . . . Hacks Repelled . | . . . Allies | -11 -10 -10 -------- Run | Yrd Mat Min Total Allies . | . . . Largest Group . | . . . Highest-Rated Group . | . . . Highest-Rated Ally . | . . . Total Orders . | . . . Ally Attacks . | . . . Total Damage . | . . . Kills . | . . . Allies Corrupted . | . . . Allies Melted . | . . . Intel | -11 -10 -10 ------- Run | Yrd Mat Min Robot Analysis Total . | . . . Derelict Logs Recovered . | . . . Drone Launches . | . . . Drone Recoveries . | . . . Exploration | -11 -10 -10 ------------- Run | Yrd Mat Min Turns Passed 431 | 90 282 59 Spaces Moved 264 | 59 186 19 Core 12 | 12 . . Treads . | . . . Legs 252 | 47 186 19 Wheels . | . . . Hover . | . . . Flight . | . . . Fastest Speed 50 | 50 120 120 Average Speed 118 | 108 120 138 Slowest Speed 190 | 150 120 190 Overloaded Moves . | . . . Propulsion Burnouts . | . . . Robots Hopped . | . . . Cave-ins Triggered . | . . . Exploration Rate (%) 18 | 5 38 11 Regions Visited 2 Branch Regions 1 Pre-discovered Areas . | . . . Known Exits Taken . | . . . Unknown Exits Taken 2 | 1 1 . Scrap Searched . | . . . Spaces Dug . | . . . Terrain Destroyed 37 | . 17 20 Melee . | . . . Projectile . | . . . AOE 37 | . 17 20 Terrain Rammed . | . . . Walls Destroyed . | . . . Machines Disabled . | . . . Actions | -11 -10 -10 --------- Run | Yrd Mat Min Total 329 | 75 222 32 Wait . | . . . Move 262 | 58 185 19 Hop . | . . . Pick Up 15 | 7 8 . Fast Attach 7 | 7 . . Attach 2 | . . 2 Detach . | . . . Swap 5 | . 3 2 Drop 8 | . 8 . Fire 30 | 3 18 9 Melee . | . . . Ram . | . . . Kick . | . . . Crush . | . . . Escape Stasis . | . . . Rewire . | . . . Trap . | . . . Miscellaneous . | . . . Route ------- -11/Scrapyard -10/Materials -10/Mines History --------- Turn | Location | Event 6 | -11/Scrapyard | Discovered new exit (range 14) 91 | -11/Scrapyard | Entered Materials 286 | -10/Materials | Discovered new exit (range 7) 300 | -10/Materials | Build established: Mutant 373 | -10/Materials | Entered Mines 374 | -10/Mines | Assembled infested the area 388 | -10/Mines | Core integrity fell below 50% 418 | -10/Mines | Met a Derelict who couldn't figure out how to use a Trap Extractor 427 | -10/Mines | Core integrity fell below 20% 432 | -10/Mines | Destroyed by D-53 Grenadier with Mini Grenade Launcher Last Messages --------------- 00417_ U-05 Engineer lays Concrete. 00417_ EM Pulse Gun destroyed. 00418_ OY-F2G(g): "So I found this thing but I have no idea how to use it. And who the hell trapped this place to begin with?!" 00418_ OY-F2G(g): "I give up! Here you try, I'm outta here before something nasty happens..." 00418_ Tosses Imp. Trap Extractor to the ground. 00418_ U-05 Engineer builds a Wall. 00423_ Mining Laser destroyed. 00425_ U-05 Engineer lays Concrete. 00426_ The unstable cave ceiling collapses. 00426_ U-05 Engineer destroyed. 00426_ as-78512 destroyed. 00427_ Machine disabled. 00429_ as-80720 destroyed. 00430_ D-53 Grenadier destroyed. 00430_ as-04978 destroyed. 00431_ D-53 Grenadier knocked back. 00432_ as-84813 destroyed. 00432_ as-68562 destroyed. Map ----- +----------------------------------------------------+ | ??????????????????????????????????????? | | ??????????????????????????????????????? | | ??????????????????????????????????????? | | ??????????????????????????????????????? | | ??????????????????????????????????????? | | ??????????????????????????????????????? | | ??????????????????????????????????????? | | ??????????????????????????????????????? | | ??????????????????????????????????????? | | ?????????????????? ???????????????????? | | ???????????????# ??????????????????? | | ?????????????## ??????????????????? | | ???????????# !??????????????????? | | ??????????? =%??????????????????? | | ??????????? ??????????????????? | | ??????????? #?????????????????? | | ??????????? ?????????????????? | | ????????? ######???????????? | | ????????? ##??????????? | | ????????? a $ ??????????? | | ?????????? a #??????????? | | ??????????? a #??????????? | | ????????????????# # ####???????? | | ??????????????????# #a;;;##??????? | | ??????????????????# a #??????? | | ?????????????###### @ ##?????? | | ??????# ;#?????? | | ?????????????###### !* ##?????? | | ??????????????????### %]a= ;#?????? | | ????????????????????# !% ;;;##?????? | | ????????????????????# d # ##??????? | | ????????????????????""" %| ##???????? | | ???????????????????!!!* # ##????????? | | ??????????????????"]!g!"# ###?????????? | | ??????????????????# !!## #???????????? | | ??????????????????##""##? #???????????? | | ????????????????????????? #???????????? | | ?????????????????????????%#???????????? | | ????????????????????????? ???????????? | | ????????????????????????? ???????????? | | ????????????????????????? ???????????? | | ????????????????????????? ???????????? | | ??????????????????????????#???????????? | | ??????????????????????????????????????? | | ??????????????????????????????????????? | | ??????????????????????????????????????? | | ??????????????????????????????????????? | | ??????????????????????????????????????? | | ??????????????????????????????????????? | | ??????????????????????????????????????? | +----------------------------------------------------+ Best States ------------- Heat Dissipation 25 Energy Generation 10 Energy Capacity 125 Matter Stores 300 Matter Capacity 300 Sight Range 16 Terrain Scan Density 10 Evasion (%) 55 Item Schematics ----------------- None Robot Schematics ------------------ None Fabricated ------------ Nothing Alien Tech Used ----------------- None Achievements -------------- None Challenges ------------ None Game ------ Seed SensorRecoilMicroactuators Manual? 0 Play Time 00:10:51 Cumulative 4.8 hours Start 2025.03.25 @ 17:53:53 End 2025.03.25 @ 18:02:54 Sessions 1 Manual Loads 0 Difficulty Rogue Special Mode None Game No. 7 Rogue 7 Adventurer 0 Explorer 0 Win Type - Total 0 Types 0/0/0/0/0/0/0/0/0 Lore% 3 Gallery% 6 Achievement% 7 Wizard Run 0 Options --------- Layout 0 ASCII 1 Keyboard 1 Movement Vi Keybinds 0 Fullscreen 2 Font 24/Smallcaps Map View 76x50 Zoom Use 0% Tactical HUD 1 Map Filters NONE Filters NONE Steam 1 RUN: 41d33855-8d0e-4714-b0e0-218cc735646a